bitfinex-derivatives/quotes_SOLF0:USTF0_20241216
["timestamp","ask_amount","ask_price","bid_price","bid_amount"]
[1734356599461,7.23268409,216.3,216.29,2.3127]
[1734356599665,2.18,216.32,216.23,7.23268409]
[1734356599965,7.23268409,216.3,216.23,5.43874354]
[1734356600367,7.23268409,216.3,216.24,7.23268409]
[1734356601157,7.23268409,216.31,216.24,7.23268409]
[1734356601358,2.18,216.3,216.24,7.23268409]
[1734356601966,2.18,216.3,216.29,2.3127]
[1734356606862,2.18,216.34,216.33,2.3122]
[1734356607058,9.41268409,216.34,216.33,2.3122]
[1734356609065,9.41268409,216.34,216.23,5.43874354]
[1734356609370,7.23268409,216.3,216.24,7.23268409]
[1734356609571,2.18,216.29,216.24,7.23268409]
[1734356609869,2.18,216.29,216.22,4.6268]
[1734356610072,2.18,216.29,216.28,2.3128]
[1734356611672,10.29458409,216.35,216.34,2.3122]
[1734356611969,2.18,216.35,216.34,2.3122]
[1734356613263,0.58369,216.37,216.3,7.23268409]
[1734356613466,0.58369,216.37,216.36,2.312]
[1734356613667,2.76369,216.37,216.36,2.312]
[1734356619073,2.76369,216.37,216.34,2.3121]
[1734356619276,7.23268409,216.35,216.34,2.3121]
[1734356620378,2.76369,216.37,216.35,2.312]
[1734356620571,7.23268409,216.36,216.35,2.312]
[1734356624180,2.18,216.37,216.36,2.312]
[1734356626390,2.3116,216.39,216.36,2.312]
[1734356626697,7.23268409,216.37,216.36,2.312]
[1734356628287,2.14,216.38,216.37,2.3118]
[1734356628796,2.14,216.38,216.32,7.23268409]
[1734356628990,2.14,216.38,216.37,2.3118]
[1734356629796,9.1174,216.43,216.34,7.23268409]
[1734356629991,9.37268409,216.42,216.34,7.23268409]
[1734356630191,7.23268409,216.4,216.32,7.23268409]
[1734356630389,7.23268409,216.4,216.38,2.3116]
[1734356630692,7.23268409,216.4,216.32,7.23268409]
[1734356632694,7.23268409,216.4,216.38,2.3116]
[1734356633787,7.23268409,216.4,216.39,2.3116]
[1734356638093,2.14,216.42,216.41,2.3114]
[1734356639793,16.35008409,216.43,216.36,7.23268409]
[1734356639989,9.84843409,216.47,216.4,7.23268409]
[1734356640501,9.84843409,216.47,216.45,2.3109]
[1734356641402,9.84843409,216.47,216.46,2.3109]
[1734356643499,0.47575,216.47,216.46,2.3109]
[1734356645199,7.23268409,216.49,216.38,2.14]
[1734356645503,7.23268409,216.49,216.47,2.3107]
[1734356646804,2.14,216.5,216.43,7.23268409]
[1734356647006,7.23268409,216.49,216.43,7.23268409]
[1734356647201,7.23268409,216.49,216.48,2.3106]
[1734356649200,5.1482,216.54,216.5,2.3104]
[1734356649407,7.23268409,216.51,216.44,7.23268409]
[1734356650310,7.23268409,216.49,216.42,7.23268409]
[1734356650505,2.14,216.48,216.42,7.23268409]
[1734356650912,2.14,216.48,216.47,2.3108]
[1734356656412,9.37268409,216.48,216.47,2.3108]
[1734356657109,2.14,216.48,216.47,2.3108]
[1734356659315,2.3104,216.51,216.48,2.3106]
[1734356659515,7.23268409,216.49,216.48,2.3106]
[1734356661913,7.23268409,216.49,216.34,5.8987]
[1734356662112,2.14,216.5,216.3,7.23268409]
[1734356662113,7.23268409,216.36,216.3,7.23268409]
[1734356662310,7.23268409,216.36,216.23,2.9533]
[1734356662311,2.14,216.35,216.23,6.0538]
[1734356662518,2.14,216.35,216.34,2.3122]
[1734356667418,7.23268409,216.43,216.41,2.3113]
[1734356667818,2.3109,216.46,216.41,2.3113]
[1734356667819,2.14,216.42,216.41,2.3113]
[1734356668117,9.37268409,216.42,216.41,2.3113]
[1734356668508,2.14,216.42,216.41,2.3113]
[1734356668910,2.14,216.42,216.39,2.3116]
[1734356669113,2.14,216.41,216.38,7.23268409]
[1734356670521,2.14,216.41,216.4,2.3115]
[1734356672817,7.23268409,216.44,216.38,7.23268409]
[1734356673010,2.14,216.43,216.38,7.23268409]
[1734356674418,2.14,216.43,216.42,2.3113]
[1734356676718,2.14,216.43,216.32,3.0399]
[1734356676924,7.23268409,216.37,216.3,7.23268409]
[1734356677115,2.14,216.36,216.3,7.23268409]
[1734356677820,2.14,216.36,216.35,2.3121]
[1734356688233,2.14,216.36,216.2,2.8264]
[1734356688429,7.23268409,216.28,216.22,7.23268409]
[1734356688623,2.14,216.27,216.24,7.23268409]
[1734356688833,2.14,216.28,216.24,7.23268409]
[1734356690126,2.14,216.28,216.27,2.3129]
[1734356699349,5.7249,216.35,216.24,7.23268409]
[1734356699543,5.7249,216.35,216.21,8.49565136]
[1734356699544,2.14,216.34,216.21,8.49565136]
[1734356699846,7.23268409,216.34,216.27,7.23268409]
[1734356700153,2.14,216.33,216.27,7.23268409]
[1734356700447,2.3119,216.37,216.29,7.23268409]
[1734356700448,7.23268409,216.37,216.29,7.23268409]
[1734356700752,7.23268409,216.37,216.36,2.312]
[1734356701046,9.37268409,216.37,216.36,2.312]
[1734356710552,9.37268409,216.37,216.25,4.6263]
[1734356710752,7.23268409,216.31,216.25,11.85898409]
[1734356710954,9.37268409,216.31,216.25,11.85898409]
[1734356711452,9.37268409,216.31,216.25,4.6263]
[1734356711658,9.37268409,216.31,216.25,11.85898409]
[1734356712267,9.37268409,216.31,216.3,2.3126]
[1734356712660,2.14,216.31,216.3,2.3126]
[1734356714859,9.37268409,216.31,216.3,2.3126]
[1734356721756,5.46550077,216.41,216.34,2.3122]
[1734356722060,5.46550077,216.41,216.21,8.49565136]
[1734356722061,7.23268409,216.35,216.26,7.23268409]
[1734356722357,7.23268409,216.33,216.26,7.23268409]
[1734356722655,7.23268409,216.33,216.31,2.3124]
[1734356722857,7.23268409,216.32,216.31,2.3124]
[1734356724268,4.4522,216.34,216.32,2.3124]
[1734356724453,7.23268409,216.33,216.32,2.3124]
[1734356726654,7.23268409,216.33,216.22,4.6269]
[1734356726858,4.4522,216.34,216.31,2.3125]
[1734356727264,4.4522,216.34,216.3,2.3126]
[1734356727864,4.4522,216.34,216.23,7.23268409]
[1734356728063,7.23268409,216.3,216.29,2.3127]
[1734356728256,9.37268409,216.3,216.21,8.49565136]
[1734356728461,7.23268409,216.26,216.21,8.49565136]
[1734356728662,2.14,216.25,216.21,8.49565136]
[1734356730162,2.14,216.25,216.24,2.3132]
[1734356730557,2.14,216.25,216.16,11.86088409]
[1734356730866,7.23268409,216.23,216.16,7.23268409]
[1734356731266,7.23268409,216.23,216.22,2.3135]
[1734356733063,7.23268409,216.23,216.18,2.3138]
[1734356733266,2.14,216.25,216.19,7.23268409]
[1734356733568,2.14,216.25,216.21,7.23268409]
[1734356733768,2.14,216.27,216.23,7.23268409]
[1734356734374,2.14,216.27,216.26,2.313]
[1734356735575,7.23268409,216.3,216.29,2.3127]
[1734356735977,9.37268409,216.3,216.29,2.3127]
[1734356739473,9.37268409,216.3,216.28,2.3128]
[1734356739680,7.23268409,216.29,216.28,2.3128]
[1734356745077,7.23268409,216.29,216.26,2.3129]
[1734356745279,7.23268409,216.27,216.26,2.3129]
[1734356746274,7.23268409,216.27,216.25,2.3131]
[1734356746476,9.37268409,216.26,216.17,2.9257]
[1734356746675,2.8769,216.33,216.17,2.9257]
[1734356746676,7.23268409,216.23,216.17,2.9257]
[1734356746871,2.14,216.22,216.18,7.23268409]
[1734356747075,2.14,216.24,216.2,7.23268409]
[1734356747478,2.14,216.24,216.23,2.3133]
[1734356747679,2.8769,216.33,216.22,7.23268409]
[1734356747977,7.23268409,216.29,216.22,7.23268409]
[1734356748377,2.14,216.28,216.22,7.23268409]
[1734356748979,2.14,216.28,216.27,2.3129]
[1734356750076,2.14,216.28,216.12,41.72444565]
[1734356750282,2.14,216.28,216.14,5.60779391]
[1734356750475,2.14,216.28,216.21,2.3136]
[1734356750476,7.23268409,216.22,216.21,2.3136]
[1734356750786,9.37268409,216.22,216.21,2.3136]
[1734356752585,2.14,216.22,216.21,2.3136]
[1734356752786,9.37268409,216.22,216.21,2.3136]
[1734356760690,2.8769,216.33,216.16,7.23268409]
[1734356760891,2.8769,216.33,216.18,7.23268409]
[1734356760892,7.23268409,216.24,216.18,7.23268409]
[1734356761091,2.8769,216.33,216.2,7.23268409]
[1734356761092,7.23268409,216.28,216.2,7.23268409]
[1734356761289,2.14,216.27,216.2,7.23268409]
[1734356761696,2.14,216.27,216.26,2.313]
[1734356761898,7.23268409,216.28,216.2,7.23268409]
[1734356762094,2.14,216.27,216.2,7.23268409]
[1734356762495,2.14,216.27,216.26,2.313]
[1734356763201,2.8829,216.36,216.22,7.23268409]
[1734356763396,2.8829,216.36,216.26,7.23268409]
[1734356763598,7.23268409,216.32,216.26,7.23268409]
[1734356763998,0.26495,216.33,216.26,7.23268409]
[1734356764300,7.23268409,216.32,216.26,7.23268409]
[1734356764493,7.23268409,216.32,216.31,2.3125]
[1734356764801,2.14,216.32,216.26,7.23268409]
[1734356765002,9.37268409,216.32,216.31,2.3125]
[1734356766900,2.40495,216.33,216.32,2.3124]
[1734356767109,0.26495,216.33,216.32,2.3124]
[1734356770703,2.9239,216.43,216.41,2.3114]
[1734356770908,9.37268409,216.42,216.41,2.3114]
[1734356773108,9.37268409,216.42,216.41,1e-08]
[1734356774506,9.37268409,216.42,216.41,2.31140001]
[1734356775508,9.37268409,216.42,216.31,2.8227]
[1734356775714,7.23268409,216.36,216.31,2.8227]
[1734356775914,9.37268409,216.36,216.31,2.8227]
[1734356776813,9.37268409,216.36,216.35,2.3121]
[1734356777008,2.14,216.36,216.35,2.3121]
[1734356777418,9.37268409,216.39,216.38,2.3117]
[1734356780010,7.23268409,216.39,216.38,2.3117]
[1734356780215,9.37268409,216.39,216.38,2.3117]
[1734356780907,7.23268409,216.39,216.38,2.3117]
[1734356781114,9.37268409,216.39,216.38,2.3117]
[1734356781510,2.14,216.39,216.38,2.3117]
[1734356781910,2.9693,216.5,216.36,7.23268409]
[1734356782117,7.23268409,216.45,216.38,7.23268409]
[1734356782717,59.15111831,216.51,216.34,2.14]
[1734356782718,9.37268409,216.47,216.4,7.23268409]
[1734356784126,2.14,216.47,216.4,7.23268409]
[1734356784322,2.14,216.47,216.46,2.3109]
[1734356784520,7.23268409,216.48,216.42,7.23268409]
[1734356784717,7.23268409,216.48,216.47,2.3108]
[1734356785227,2.14,216.48,216.47,2.3108]
[1734356786616,9.37268409,216.48,216.47,2.3108]
[1734356790429,7.23268409,216.48,216.47,2.3108]
[1734356790632,2.14,216.48,216.42,7.23268409]
[1734356791128,2.14,216.48,216.47,2.3108]
[1734356791327,7.23268409,216.5,216.42,7.23268409]
[1734356791529,2.14,216.49,216.42,7.23268409]
[1734356791927,2.14,216.49,216.48,2.3107]
[1734356793943,9.37268409,216.49,216.48,2.3107]
[1734356794329,2.9693,216.55,216.41,5.49505725]
[1734356794528,7.23268409,216.5,216.44,7.23268409]
[1734356794831,2.14,216.49,216.46,7.23268409]
[1734356795030,2.14,216.5,216.49,2.3106]
[1734356798036,2.3094,216.61,216.56,2.3098]
[1734356798235,62.27268409,216.57,216.56,2.3098]
[1734356798732,52.9,216.57,216.56,2.3098]
[1734356798931,55.04,216.57,216.56,2.3098]
[1734356799136,2.14,216.57,216.56,2.3098]
[1734356799437,3.0538,216.6,216.58,2.3096]
[1734356799635,9.78178409,216.59,216.58,2.3096]
[1734356800527,0.4091,216.59,216.58,2.3096]
[1734356802931,2.5491,216.59,216.58,2.3096]
[1734356804139,2.5491,216.59,216.56,2.3097]
[1734356804337,7.23268409,216.57,216.56,2.3097]
[1734356809740,7.23268409,216.57,216.47,5.8071]
[1734356809938,2.5491,216.59,216.54,2.31]
[1734356809939,7.23268409,216.55,216.54,2.31]
[1734356810141,9.37268409,216.55,216.54,2.31]
[1734356811040,2.14,216.55,216.54,2.31]
[1734356816443,9.0228,216.6,216.58,2.3096]
[1734356816646,2.14,216.59,216.54,7.23268409]
[1734356817153,2.14,216.59,216.48,6.7613]
[1734356817154,5.9568,216.67,216.56,7.23268409]
[1734356817447,7.23268409,216.64,216.56,7.23268409]
[1734356818041,2.14,216.63,216.56,7.23268409]
[1734356818442,2.14,216.63,216.57,7.23268409]
[1734356819550,2.14,216.63,216.62,2.3092]
[1734356820453,9.37268409,216.63,216.62,2.3092]
[1734356821051,9.37268409,216.63,216.6,2.3093]
[1734356821252,7.23268409,216.61,216.53,7.23268409]
[1734356821448,7.23268409,216.59,216.52,7.23268409]
[1734356821753,2.14,216.58,216.52,7.23268409]
[1734356822547,7.23268409,216.57,216.44,4.6221]
[1734356822748,7.23268409,216.57,216.5,7.23268409]
[1734356822953,2.14,216.58,216.46,37.03838438]
[1734356822954,7.23268409,216.55,216.46,37.03838438]
[1734356823248,7.23268409,216.53,216.46,37.03838438]
[1734356823448,7.23268409,216.51,216.48,2.3107]
[1734356823655,2.14,216.5,216.48,2.3107]
[1734356824057,7.23268409,216.49,216.43,7.23268409]
[1734356824251,7.23268409,216.49,216.47,2.3108]
[1734356824649,2.14,216.5,216.43,7.23268409]
[1734356824848,2.14,216.5,216.48,2.3107]
[1734356825651,2.14,216.49,216.48,2.3107]
[1734356826756,9.37268409,216.49,216.43,7.23268409]
[1734356827158,7.23268409,216.47,216.41,12.72774134]
[1734356827463,7.23268409,216.47,216.44,2.3111]
[1734356827653,7.23268409,216.47,216.38,5.9608]
[1734356827962,9.54368409,216.45,216.38,7.23268409]
[1734356828160,2.14,216.44,216.38,7.23268409]
[1734356828556,2.14,216.44,216.41,2.3113]
[1734356828960,7.23268409,216.43,216.41,2.3113]
[1734356830669,7.23268409,216.43,216.36,7.23268409]
[1734356831464,7.23268409,216.43,216.31,5.9116]
[1734356831664,9.54398409,216.43,216.36,7.23268409]
[1734356831962,7.23268409,216.45,216.38,7.23268409]
[1734356832160,2.14,216.44,216.38,7.23268409]
[1734356833161,2.14,216.44,216.41,2.3113]
[1734356833358,2.14,216.44,216.38,7.23268409]
[1734356834760,7.23268409,216.45,216.38,7.23268409]
[1734356834961,2.14,216.44,216.39,2.3115]
[1734356835162,2.14,216.44,216.38,7.23268409]
[1734356835363,7.23268409,216.45,216.38,7.23268409]
[1734356835568,2.14,216.44,216.38,7.23268409]
[1734356835769,2.14,216.44,216.4,7.23268409]
[1734356836470,2.14,216.44,216.43,2.3112]
[1734356836868,2.3103,216.52,216.45,2.3109]
[1734356837066,9.37268409,216.51,216.44,7.23268409]
[1734356837767,7.23268409,216.49,216.36,5.66885242]
[1734356837969,7.23268409,216.49,216.42,7.23268409]
[1734356838166,7.23268409,216.49,216.46,2.3108]
[1734356838362,7.23268409,216.49,216.42,7.23268409]
[1734356838566,4.4504,216.51,216.42,2.3112]
[1734356838567,7.23268409,216.44,216.42,2.3112]
[1734356838871,2.14,216.43,216.42,2.3112]
[1734356840866,9.54378409,216.44,216.38,2.3117]
[1734356841074,2.14,216.43,216.36,12.90153651]
[1734356841769,2.14,216.43,216.4,2.3115]
[1734356841968,2.14,216.43,216.4,7.23268409]
[1734356842468,2.14,216.43,216.42,2.3113]
[1734356843667,2.14,216.44,216.43,2.3111]
[1734356844774,5.8639,216.54,216.4,7.23268409]
[1734356844974,7.23268409,216.47,216.44,2.3111]
[1734356845170,2.14,216.46,216.44,2.3111]
[1734356845968,7.23268409,216.45,216.36,5.66885242]
[1734356846171,7.23268409,216.45,216.38,7.23268409]
[1734356846675,9.54368409,216.45,216.41,2.3114]
[1734356846871,9.54368409,216.45,216.36,5.66885242]
[1734356846872,7.23268409,216.43,216.36,12.90153651]
[1734356847072,2.14,216.42,216.36,12.90153651]
[1734356848169,7.23268409,216.41,216.31,5.9116]
[1734356848370,7.23268409,216.41,216.33,7.23268409]
[1734356849676,7.23268409,216.41,216.35,7.23268409]
[1734356850069,2.14,216.42,216.35,7.23268409]
[1734356850272,7.23268409,216.41,216.35,7.23268409]
[1734356850981,7.23268409,216.41,216.34,12.82818875]
[1734356851479,7.23268409,216.41,216.4,2.3115]
[1734356851678,5.8639,216.54,216.38,7.23268409]
[1734356851874,2.14,216.53,216.38,7.23268409]
[1734356852078,7.23268409,216.46,216.4,7.23268409]
[1734356852376,2.14,216.45,216.44,2.311]
[1734356852977,2.14,216.45,216.43,2.3112]
[1734356853283,7.23268409,216.44,216.43,2.3112]
[1734356855374,2.14,216.45,216.43,2.3112]
[1734356855582,2.14,216.45,216.44,2.3111]
[1734356856778,2.9635,216.55,216.42,7.23268409]
[1734356856980,7.23268409,216.49,216.42,7.23268409]
[1734356857189,7.23268409,216.45,216.38,7.23268409]
[1734356857481,7.23268409,216.43,216.34,5.59550466]
[1734356857678,2.14,216.42,216.34,5.59550466]
[1734356857878,2.14,216.42,216.41,2.3114]
[1734356859685,7.23268409,216.46,216.4,7.23268409]
[1734356859982,2.14,216.45,216.4,7.23268409]
[1734356860782,2.14,216.45,216.44,2.3111]
[1734356862077,2.14,216.45,216.38,7.23268409]
[1734356862078,2.14,216.45,216.38,2.3117]
[1734356862282,7.23268409,216.41,216.38,2.3117]
[1734356862481,9.37268409,216.41,216.34,5.59550466]
[1734356863084,9.37268409,216.41,216.35,7.23268409]
[1734356863281,9.37268409,216.41,216.4,2.3115]
[1734356863485,7.23268409,216.41,216.4,2.3115]
[1734356863695,9.37268409,216.41,216.4,2.3115]
[1734356864488,5.63916474,216.56,216.39,7.23268409]
[1734356864688,7.23268409,216.48,216.42,7.23268409]
[1734356864888,9.37268409,216.48,216.46,2.3108]
[1734356865288,9.37268409,216.48,216.37,2.14]
[1734356865580,9.37268409,216.48,216.45,2.3109]
[1734356865786,7.23268409,216.46,216.45,2.3109]
[1734356865982,7.23268409,216.46,216.34,7.73550466]
[1734356866179,7.23268409,216.46,216.38,7.23268409]
[1734356866381,2.14,216.51,216.44,7.23268409]
[1734356866590,9.37268409,216.51,216.44,7.23268409]
[1734356866986,2.14,216.5,216.48,2.3106]
[1734356867988,2.14,216.5,216.49,2.3106]
[1734356868892,2.14,216.53,216.49,2.3105]
[1734356869080,2.14,216.53,216.4,11.27904758]
[1734356869790,2.14,216.54,216.43,11.27904758]
[1734356870389,2.14,216.54,216.51,2.3103]
[1734356870885,2.14,216.54,216.43,11.27904758]
[1734356871189,2.14,216.54,216.4,11.27904758]
[1734356872189,2.3102,216.53,216.4,11.27904758]
[1734356872382,2.14,216.54,216.4,11.27904758]
[1734356873086,2.3103,216.52,216.4,11.27904758]
[1734356873584,2.3103,216.52,216.47,2.3107]
[1734356873887,2.14,216.54,216.47,2.3107]
[1734356874296,2.3103,216.52,216.47,2.3107]
[1734356874992,11.27904758,216.52,216.47,2.3107]
[1734356875190,11.27904758,216.52,216.4,11.27904758]
[1734356875394,2.3106,216.49,216.45,2.3109]
[1734356875586,2.14,216.48,216.45,2.3109]
[1734356875787,2.14,216.47,216.42,5.52940965]
[1734356875997,2.14,216.46,216.43,2.3112]
[1734356877890,2.14,216.46,216.39,5.6803]
[1734356877891,4.4509,216.46,216.41,2.3114]
[1734356878098,4.4509,216.46,216.41,5.55899045]
[1734356879288,2.14,216.46,216.26,44.01032891]
[1734356879597,13.41904758,216.46,216.38,5.5095994]
[1734356879987,2.3113,216.43,216.39,2.3115]
[1734356880187,2.14,216.42,216.39,2.3115]
[1734356880793,2.14,216.42,216.4,2.3115]
[1734356881297,2.14,216.41,216.4,2.3115]
[1734356884299,4.4514,216.41,216.32,11.27904758]
[1734356884702,2.14,216.41,216.32,11.27904758]
[1734356885497,2.14,216.41,216.38,2.3117]
[1734356886898,2.14,216.41,216.36,5.57445007]
[1734356887098,2.3115,216.4,216.37,2.3118]
[1734356888200,2.3117,216.38,216.29,11.27904758]
[1734356888425,2.14,216.37,216.28,5.932]
[1734356888792,2.14,216.37,216.31,5.68207213]
[1734356889396,2.3121,216.35,216.32,2.3124]
[1734356889997,7.22916535,216.34,216.32,2.3124]
[1734356890197,2.14,216.33,216.32,2.3124]
[1734356894398,2.14,216.33,216.26,37.07132891]
[1734356894600,2.14,216.33,216.14,6.33005053]
[1734356894601,9.54156535,216.32,216.28,2.3127]
[1734356895907,7.22916535,216.32,216.29,2.3127]
[1734356896202,7.22916535,216.32,216.19,2.14]
[1734356896203,2.14,216.31,216.27,12.69411086]
[1734356896405,2.14,216.31,216.3,2.3126]
[1734356899105,2.3119,216.37,216.27,12.69411086]
[1734356899411,2.14,216.36,216.31,7.22916535]
[1734356900110,2.3113,216.42,216.38,2.3117]
[1734356900310,9.36916535,216.41,216.38,2.3117]
[1734356900508,2.14,216.4,216.38,2.3117]
[1734356902215,7.22916535,216.39,216.38,2.3117]
[1734356905113,2.14,216.4,216.38,2.3117]
[1734356905410,2.14,216.39,216.35,7.22916535]
[1734356905912,2.14,216.39,216.38,2.3117]
[1734356906520,7.22916535,216.41,216.4,2.3115]
[1734356906720,9.36916535,216.41,216.4,2.3115]
[1734356907223,9.36916535,216.41,216.29,2.828]
[1734356907423,7.22916535,216.39,216.32,7.22916535]
[1734356907619,2.14,216.38,216.32,7.22916535]
[1734356907920,7.22916535,216.33,216.28,5.7903]
[1734356908220,7.22916535,216.31,216.28,2.3128]
[1734356908536,7.22916535,216.29,216.21,2.8762]
[1734356908713,7.22916535,216.26,216.14,37.08849661]
[1734356908919,2.14,216.25,216.23,5.57748324]
[1734356909218,2.14,216.25,216.18,7.22916535]
[1734356909415,7.22916535,216.24,216.2,2.3136]
[1734356909621,7.22916535,216.24,216.17,7.22916535]
[1734356910123,2.14,216.25,216.14,48.39461867]
[1734356910621,2.14,216.25,216.21,2.3135]
[1734356911913,2.14,216.25,216.23,2.3133]
[1734356912121,2.14,216.24,216.21,5.49520969]
[1734356912322,2.14,216.27,216.21,5.49520969]
[1734356913221,2.14,216.27,216.26,2.313]
[1734356913422,2.3125,216.32,216.21,5.49520969]
[1734356913621,2.14,216.31,216.28,2.3127]
[1734356916021,2.14,216.31,216.29,2.3126]
[1734356916624,2.14,216.31,216.28,2.3128]
[1734356916824,2.16,216.3,216.22,6.002]
[1734356917428,2.16,216.29,216.22,6.002]
[1734356917730,2.16,216.31,216.23,11.30612206]
[1734356917933,2.16,216.31,216.3,2.3126]
[1734356918237,13.61822206,216.36,216.23,14.17132206]
[1734356918238,2.16,216.32,216.23,14.17132206]
[1734356918427,2.16,216.32,216.31,2.3125]
[1734356919535,2.16,216.33,216.31,2.3125]
[1734356920031,13.61782206,216.39,216.34,2.3121]
[1734356920232,2.16,216.38,216.34,2.3121]
[1734356920434,11.30612206,216.36,216.23,2.8652]
[1734356920626,13.61852206,216.32,216.23,2.8652]
[1734356920927,13.61852206,216.32,216.22,6.002]
[1734356920928,2.16,216.31,216.22,3.0404]
[1734356921833,2.3129,216.28,216.24,2.3132]
[1734356922025,2.16,216.27,216.24,2.3132]
[1734356922928,2.16,216.27,216.25,2.3131]
[1734356923129,11.30612206,216.32,216.21,5.49520969]
[1734356923328,11.30612206,216.28,216.21,5.49520969]
[1734356923531,2.313,216.26,216.22,2.3134]
[1734356923832,2.313,216.26,216.21,5.49520969]
[1734356924033,4.4729,216.27,216.22,2.3134]
[1734356924328,4.4729,216.27,216.17,2.8555]
[1734356924329,2.16,216.27,216.17,2.8555]
[1734356924634,2.3132,216.25,216.2,2.3136]
[1734356924831,2.16,216.27,216.2,2.3136]
[1734356925232,2.3132,216.25,216.2,2.3136]
[1734356926235,2.313,216.26,216.21,2.3135]
[1734356926927,2.16,216.27,216.17,2.8555]
[1734356927127,2.3132,216.25,216.19,2.3137]
[1734356927327,2.3132,216.25,216.19,5.54439445]
[1734356928536,2.3132,216.25,216.2,2.3137]
[1734356931328,2.3132,216.24,216.2,2.3137]
[1734356931533,2.16,216.23,216.2,2.3137]
[1734356932540,2.16,216.23,216.19,5.54439445]
[1734356932938,2.16,216.23,216.2,2.3136]
[1734356933234,2.16,216.23,216.19,5.54439445]
[1734356933838,4.4734,216.23,216.18,2.3139]
[1734356934040,2.16,216.23,216.16,3.0268]
[1734356934341,4.4734,216.23,216.19,2.3138]
[1734356934540,2.16,216.23,216.16,3.0268]
[1734356934836,2.3135,216.22,216.18,2.3138]
[1734356935242,2.3135,216.22,216.16,3.0268]
[1734356935444,4.4734,216.23,216.18,2.3139]
[1734356936340,4.4734,216.23,216.19,2.3138]
[1734356936643,2.16,216.23,216.19,2.3138]
[1734356937243,2.16,216.23,216.2,2.3136]
[1734356939742,2.16,216.23,216.21,2.3135]
[1734356939942,11.30612206,216.25,216.17,5.48905145]
[1734356940142,2.16,216.24,216.17,5.48905145]
[1734356941341,2.9793,216.35,216.17,5.48905145]
[1734356941342,11.30612206,216.28,216.17,5.48905145]
[1734356941648,11.30612206,216.31,216.17,16.79517351]
[1734356941846,2.16,216.3,216.29,2.3127]
[1734356942546,11.30612206,216.31,216.29,2.3127]
[1734356942746,2.16,216.3,216.29,2.3127]
[1734356943252,2.16,216.3,216.27,2.3128]
[1734356943546,2.16,216.3,216.2,11.30612206]
[1734356944542,2.16,216.3,216.28,2.3127]
[1734356946655,2.3125,216.32,216.2,11.30612206]
[1734356946656,13.61832206,216.34,216.3,2.3126]
[1734356946850,13.61832206,216.34,216.21,3.1329]
[1734356946851,2.24,216.33,216.21,3.1329]
[1734356947151,2.24,216.32,216.23,11.30612206]
[1734356947352,2.24,216.32,216.21,5.3729]
[1734356947751,2.24,216.32,216.21,3.1329]
[1734356947953,2.24,216.32,216.29,2.3126]
[1734356948148,2.24,216.32,216.21,3.1329]
[1734356948349,2.24,216.31,216.3,2.3126]
[1734356948552,2.24,216.31,216.27,7.23057684]
[1734356948952,2.24,216.31,216.3,2.3126]
[1734356949553,7.23057684,216.34,216.32,2.3123]
[1734356949750,2.24,216.33,216.32,2.3123]
[1734356950251,7.23057684,216.34,216.32,2.3123]
[1734356950455,2.8659,216.44,216.29,7.23057684]
[1734356950754,7.23057684,216.4,216.33,7.23057684]
[1734356951154,7.23057684,216.4,216.37,2.3118]
[1734356952350,2.24,216.39,216.38,2.3117]
[1734356955754,2.24,216.39,216.31,11.28921706]
[1734356955755,2.24,216.39,216.33,2.3122]
[1734356956058,2.24,216.39,216.31,11.28921706]
[1734356956362,2.24,216.39,216.34,2.3121]
[1734356957356,11.28921706,216.38,216.3,5.63850883]
[1734356958559,2.3121,216.35,216.31,2.3125]
[1734356958857,2.24,216.34,216.31,2.3125]
[1734356960761,2.24,216.34,216.3,5.63850883]
[1734356961555,2.24,216.34,216.32,2.3124]
[1734356962951,2.24,216.34,216.3,5.63850883]